{"text_format":"3","workbook":"xlsx","n_sheets":7,"sheets":["Luni","Marți","Miercuri","Joi","Vineri","Sâmbătă","Duminică"],"not_rendered":{"defined_names":24},"read":"whole","date_system":"1900"}

{"sheet":"Luni","index":0,"n_rows":10,"n_cols":13,"rows_kept":10,"merged":[[1,1,2,1],[1,2,1,10],[1,11,1,12],[2,2,2,10],[2,11,2,12]]}
[null,"PLANIFICAREA TURELOR"]
[null,"LUNI","Pentru săptămâna: ",{"$nulls":8},"DATA"]
[null,null,"Nume departament: ",{"$nulls":8},"DEPARTAMENT"]
[null,"Nume angajat","7:00","8:00","9:00","10:00","11:00","12:00","13:00","14:00","15:00","Concediu medical?","TOTAL"]
[null,"Cătălina B","manager","manager","manager","manager","manager","manager","manager","manager","manager",null,{"$f":"IFERROR(COUNTIF(Luni[[#This Row],[7:00]:[15:00]],\"*\"),\"\")","v":9}]
[null,"Emil M",null,"casier","casier","casier","casier",{"$nulls":5},{"$f":"IFERROR(COUNTIF(Luni[[#This Row],[7:00]:[15:00]],\"*\"),\"\")","v":4}]
[null,"Gabriel B",null,"recepție","recepție","recepție","recepție ","recepție","recepție","recepție",null,null,{"$f":"IFERROR(COUNTIF(Luni[[#This Row],[7:00]:[15:00]],\"*\"),\"\")","v":7}]
[null,"Iustin M",null,"recepție","recepție","recepție","recepție ","recepție","recepție","recepție",null,null,{"$f":"IFERROR(COUNTIF(Luni[[#This Row],[7:00]:[15:00]],\"*\"),\"\")","v":7}]
[null,"Anton P",{"$nulls":10},{"$f":"IFERROR(COUNTIF(Luni[[#This Row],[7:00]:[15:00]],\"*\"),\"\")","v":0}]
[null,"Anca B",{"$nulls":5},"casier","casier","casier","casier",null,{"$f":"IFERROR(COUNTIF(Luni[[#This Row],[7:00]:[15:00]],\"*\"),\"\")","v":4}]

{"sheet":"Marți","index":1,"n_rows":10,"n_cols":13,"rows_kept":10,"merged":[[1,1,2,1],[1,2,1,10],[1,11,1,12],[2,2,2,10],[2,11,2,12]]}
[null,{"$f":"Titlu_PLANIFICARE_TURE","v":"PLANIFICAREA TURELOR"}]
[null,"MARȚI","Pentru săptămâna: ",{"$nulls":8},{"$f":"DATA","v":"DATA"}]
[null,null,"Nume departament: ",{"$nulls":8},{"$f":"DEPARTAMENT","v":"DEPARTAMENT"}]
[null,"Nume angajat","7:00","8:00","9:00","10:00","11:00","12:00","13:00","14:00","15:00","Concediu medical?","TOTAL"]
[null,"Cătălina B","manager","manager","manager","manager","manager","manager","manager","manager","manager",null,{"$f":"IFERROR(COUNTIF(Marți[[#This Row],[7:00]:[15:00]],\"*\"),\"\")","v":9}]
[null,"Emil M",null,"casier","casier","casier","casier",{"$nulls":5},{"$f":"IFERROR(COUNTIF(Marți[[#This Row],[7:00]:[15:00]],\"*\"),\"\")","v":4}]
[null,"Gabriel B",null,"recepție","recepție","recepție","recepție ","recepție","recepție","recepție",null,null,{"$f":"IFERROR(COUNTIF(Marți[[#This Row],[7:00]:[15:00]],\"*\"),\"\")","v":7}]
[null,"Iustin M",null,"recepție","recepție","recepție","recepție ","recepție","recepție","recepție",null,null,{"$f":"IFERROR(COUNTIF(Marți[[#This Row],[7:00]:[15:00]],\"*\"),\"\")","v":7}]
[null,"Anton P",{"$nulls":9},"Concediu medical",{"$f":"IFERROR(COUNTIF(Marți[[#This Row],[7:00]:[15:00]],\"*\"),\"\")","v":0}]
[null,"Anca B",{"$nulls":5},"casier","casier","casier","casier",null,{"$f":"IFERROR(COUNTIF(Marți[[#This Row],[7:00]:[15:00]],\"*\"),\"\")","v":4}]

{"sheet":"Miercuri","index":2,"n_rows":10,"n_cols":13,"rows_kept":10,"merged":[[1,1,2,1],[1,2,1,10],[1,11,1,12],[2,2,2,10],[2,11,2,12]]}
[null,{"$f":"Titlu_PLANIFICARE_TURE","v":"PLANIFICAREA TURELOR"}]
[null,"MIERCURI","Pentru săptămâna: ",{"$nulls":8},{"$f":"DATA","v":"DATA"}]
[null,null,"Nume departament: ",{"$nulls":8},{"$f":"DEPARTAMENT","v":"DEPARTAMENT"}]
[null,"Nume angajat","7:00","8:00","9:00","10:00","11:00","12:00","13:00","14:00","15:00","Concediu medical?","TOTAL"]
[null,"Cătălina B","manager","manager","manager","manager","manager","manager","manager","manager","manager",null,{"$f":"IFERROR(COUNTIF(Miercuri[[#This Row],[7:00]:[15:00]],\"*\"),\"\")","v":9}]
[null,"Emil M",null,"casier","casier","casier","casier",{"$nulls":5},{"$f":"IFERROR(COUNTIF(Miercuri[[#This Row],[7:00]:[15:00]],\"*\"),\"\")","v":4}]
[null,"Gabriel B",null,"recepție","recepție","recepție","recepție ","recepție","recepție","recepție",null,null,{"$f":"IFERROR(COUNTIF(Miercuri[[#This Row],[7:00]:[15:00]],\"*\"),\"\")","v":7}]
[null,"Iustin M",null,"recepție","recepție","recepție","recepție ","recepție","recepție","recepție",null,null,{"$f":"IFERROR(COUNTIF(Miercuri[[#This Row],[7:00]:[15:00]],\"*\"),\"\")","v":7}]
[null,"Anton P",{"$nulls":9},"Concediu medical",{"$f":"IFERROR(COUNTIF(Miercuri[[#This Row],[7:00]:[15:00]],\"*\"),\"\")","v":0}]
[null,"Anca B",{"$nulls":5},"casier","casier","casier","casier",null,{"$f":"IFERROR(COUNTIF(Miercuri[[#This Row],[7:00]:[15:00]],\"*\"),\"\")","v":4}]

{"sheet":"Joi","index":3,"n_rows":10,"n_cols":13,"rows_kept":10,"merged":[[1,1,2,1],[1,2,1,10],[1,11,1,12],[2,2,2,10],[2,11,2,12]]}
[null,{"$f":"Titlu_PLANIFICARE_TURE","v":"PLANIFICAREA TURELOR"}]
[null,"JOI","Pentru săptămâna: ",{"$nulls":8},{"$f":"DATA","v":"DATA"}]
[null,null,"Nume departament: ",{"$nulls":8},{"$f":"DEPARTAMENT","v":"DEPARTAMENT"}]
[null,"Nume angajat","7:00","8:00","9:00","10:00","11:00","12:00","13:00","14:00","15:00","Concediu medical?","TOTAL"]
[null,"Cătălina B","manager","manager","manager","manager","manager","manager","manager","manager","manager",null,{"$f":"IFERROR(COUNTIF(Joi[[#This Row],[7:00]:[15:00]],\"*\"),\"\")","v":9}]
[null,"Emil M",null,"casier","casier","casier","casier",{"$nulls":5},{"$f":"IFERROR(COUNTIF(Joi[[#This Row],[7:00]:[15:00]],\"*\"),\"\")","v":4}]
[null,"Gabriel B",null,"recepție","recepție","recepție","recepție ","recepție","recepție","recepție",null,null,{"$f":"IFERROR(COUNTIF(Joi[[#This Row],[7:00]:[15:00]],\"*\"),\"\")","v":7}]
[null,"Iustin M",null,"recepție","recepție","recepție","recepție ","recepție","recepție","recepție",null,null,{"$f":"IFERROR(COUNTIF(Joi[[#This Row],[7:00]:[15:00]],\"*\"),\"\")","v":7}]
[null,"Anton P",{"$nulls":9},"Concediu medical",{"$f":"IFERROR(COUNTIF(Joi[[#This Row],[7:00]:[15:00]],\"*\"),\"\")","v":0}]
[null,"Anca B",{"$nulls":5},"casier","casier","casier","casier",null,{"$f":"IFERROR(COUNTIF(Joi[[#This Row],[7:00]:[15:00]],\"*\"),\"\")","v":4}]

{"sheet":"Vineri","index":4,"n_rows":10,"n_cols":13,"rows_kept":10,"merged":[[1,1,2,1],[1,2,1,10],[1,11,1,12],[2,2,2,10],[2,11,2,12]]}
[null,{"$f":"Titlu_PLANIFICARE_TURE","v":"PLANIFICAREA TURELOR"}]
[null,"VINERI","Pentru săptămâna: ",{"$nulls":8},{"$f":"DATA","v":"DATA"}]
[null,null,"Nume departament: ",{"$nulls":8},{"$f":"DEPARTAMENT","v":"DEPARTAMENT"}]
[null,"Nume angajat","7:00","8:00","9:00","10:00","11:00","12:00","13:00","14:00","15:00","Concediu medical?","TOTAL"]
[null,"Cătălina B","manager","manager","manager","manager","manager","manager","manager","manager","manager",null,{"$f":"IFERROR(COUNTIF(Vineri[[#This Row],[7:00]:[15:00]],\"*\"),\"\")","v":9}]
[null,"Emil M",null,"casier","casier","casier","casier",{"$nulls":5},{"$f":"IFERROR(COUNTIF(Vineri[[#This Row],[7:00]:[15:00]],\"*\"),\"\")","v":4}]
[null,"Gabriel B",null,"recepție","recepție","recepție","recepție ","recepție","recepție","recepție",null,null,{"$f":"IFERROR(COUNTIF(Vineri[[#This Row],[7:00]:[15:00]],\"*\"),\"\")","v":7}]
[null,"Iustin M",null,"recepție","recepție","recepție","recepție ","recepție","recepție","recepție",null,null,{"$f":"IFERROR(COUNTIF(Vineri[[#This Row],[7:00]:[15:00]],\"*\"),\"\")","v":7}]
[null,"Anton P",{"$nulls":9},"Concediu medical",{"$f":"IFERROR(COUNTIF(Vineri[[#This Row],[7:00]:[15:00]],\"*\"),\"\")","v":0}]
[null,"Anca B",{"$nulls":5},"casier","casier","casier","casier",null,{"$f":"IFERROR(COUNTIF(Vineri[[#This Row],[7:00]:[15:00]],\"*\"),\"\")","v":4}]

{"sheet":"Sâmbătă","index":5,"n_rows":10,"n_cols":13,"rows_kept":10,"merged":[[1,1,2,1],[1,2,1,10],[1,11,1,12],[2,2,2,10],[2,11,2,12]]}
[null,{"$f":"Titlu_PLANIFICARE_TURE","v":"PLANIFICAREA TURELOR"}]
[null,"SÂMBĂTĂ","Pentru săptămâna: ",{"$nulls":8},{"$f":"DATA","v":"DATA"}]
[null,null,"Nume departament: ",{"$nulls":8},{"$f":"DEPARTAMENT","v":"DEPARTAMENT"}]
[null,"Nume angajat","7:00","8:00","9:00","10:00","11:00","12:00","13:00","14:00","15:00","Concediu medical?","TOTAL"]
[null,"Cătălina B","manager","manager","manager","manager","manager","manager","manager","manager","manager",null,{"$f":"IFERROR(COUNTIF(Sâmbătă[[#This Row],[7:00]:[15:00]],\"*\"),\"\")","v":9}]
[null,"Emil M",null,"casier","casier","casier","casier",{"$nulls":5},{"$f":"IFERROR(COUNTIF(Sâmbătă[[#This Row],[7:00]:[15:00]],\"*\"),\"\")","v":4}]
[null,"Gabriel B",null,"recepție","recepție","recepție","recepție ","recepție","recepție","recepție",null,null,{"$f":"IFERROR(COUNTIF(Sâmbătă[[#This Row],[7:00]:[15:00]],\"*\"),\"\")","v":7}]
[null,"Iustin M",null,"recepție","recepție","recepție","recepție ","recepție","recepție","recepție",null,null,{"$f":"IFERROR(COUNTIF(Sâmbătă[[#This Row],[7:00]:[15:00]],\"*\"),\"\")","v":7}]
[null,"Anton P",{"$nulls":9},"Concediu medical",{"$f":"IFERROR(COUNTIF(Sâmbătă[[#This Row],[7:00]:[15:00]],\"*\"),\"\")","v":0}]
[null,"Anca B",{"$nulls":5},"casier","casier","casier","casier",null,{"$f":"IFERROR(COUNTIF(Sâmbătă[[#This Row],[7:00]:[15:00]],\"*\"),\"\")","v":4}]

{"sheet":"Duminică","index":6,"n_rows":10,"n_cols":13,"rows_kept":10,"merged":[[1,1,2,1],[1,2,1,10],[1,11,1,12],[2,2,2,10],[2,11,2,12]]}
[null,{"$f":"Titlu_PLANIFICARE_TURE","v":"PLANIFICAREA TURELOR"}]
[null,"DUMINICĂ","Pentru săptămâna: ",{"$nulls":8},{"$f":"DATA","v":"DATA"}]
[null,null,"Nume departament: ",{"$nulls":8},{"$f":"DEPARTAMENT","v":"DEPARTAMENT"}]
[null,"Nume angajat","7:00","8:00","9:00","10:00","11:00","12:00","13:00","14:00","15:00","Concediu medical?","TOTAL"]
[null,"Cătălina B","manager","manager","manager","manager","manager","manager","manager","manager","manager",null,{"$f":"IFERROR(COUNTIF(Duminică[[#This Row],[7:00]:[15:00]],\"*\"),\"\")","v":9}]
[null,"Emil M",null,"casier","casier","casier","casier",{"$nulls":5},{"$f":"IFERROR(COUNTIF(Duminică[[#This Row],[7:00]:[15:00]],\"*\"),\"\")","v":4}]
[null,"Gabriel B",null,"recepție","recepție","recepție","recepție ","recepție","recepție","recepție",null,null,{"$f":"IFERROR(COUNTIF(Duminică[[#This Row],[7:00]:[15:00]],\"*\"),\"\")","v":7}]
[null,"Iustin M",null,"recepție","recepție","recepție","recepție ","recepție","recepție","recepție",null,null,{"$f":"IFERROR(COUNTIF(Duminică[[#This Row],[7:00]:[15:00]],\"*\"),\"\")","v":7}]
[null,"Anton P",{"$nulls":9},"Concediu medical",{"$f":"IFERROR(COUNTIF(Duminică[[#This Row],[7:00]:[15:00]],\"*\"),\"\")","v":0}]
[null,"Anca B",{"$nulls":5},"casier","casier","casier","casier",null,{"$f":"IFERROR(COUNTIF(Duminică[[#This Row],[7:00]:[15:00]],\"*\"),\"\")","v":4}]